fUSD/lending_fUSD_20241219
["ID","MTS","AMOUNT","RATE_DAILY","PERIOD"]
[346006307,1734621046480,-500.0,0.00022465,4]
[346006308,1734621046489,-500.0,0.00022465,4]
[346006309,1734621046499,-500.0,0.00022465,4]
[346006310,1734621046508,-500.0,0.00022465,4]
[346006311,1734621046518,-563.56,0.00022465,4]
[346006312,1734621046527,-500.0,0.00022465,4]
[346006313,1734621046537,-500.0,0.00022465,4]
[346006314,1734621046549,-500.0,0.00022465,4]
[346006315,1734621046558,-870.27,0.00022465,4]
[346006316,1734621046567,-500.0,0.00022465,4]
[346006317,1734621046577,-521.97,0.00022465,4]
[346006318,1734621046587,-500.0,0.00022465,4]
[346006319,1734621046596,-141.83680992,0.00022465,4]
[346006320,1734621047264,-500.0,0.00021917,4]
[346006321,1734621047273,-695.09,0.00021917,4]
[346006322,1734621047283,-500.0,0.00021917,4]
[346006323,1734621047292,-400.0,0.00022,2]
[346006324,1734621047303,-269.85787985,0.00022191,4]
[346006325,1734621047315,-230.14212015,0.00022191,4]
[346006326,1734621047325,-695.09,0.00022191,4]
[346006327,1734621047335,-358.16319008,0.00022465,4]
[346006328,1734621047344,-1132.37,0.00022465,4]
[346006329,1734621047354,-500.0,0.00022465,4]
[346006330,1734621047364,-975.73468977,0.00022465,4]
[346006331,1734621047747,-500.0,0.00021917,4]
[346006332,1734621047756,-48.23259867,0.00021917,4]
[346006333,1734621047769,-295.14953649,0.00021917,4]
[346006334,1734621047784,-156.61786484,0.00021917,4]
[346006335,1734621047793,-500.0,0.00021917,4]
[346006336,1734621047805,-357.05,0.00022191,4]
[346006337,1734621047816,-1749.04531023,0.00022465,4]
[346006338,1734621047828,-500.0,0.00022465,4]
[346006339,1734621047837,-772.38,0.00022465,4]
[346006340,1734621047846,-500.0,0.00022465,4]
[346006341,1734621047855,-500.0,0.00022465,4]
[346006342,1734621047865,-221.17693949,0.00022465,4]
[346006343,1734621047874,-500.0,0.00022465,4]
[346006344,1734621047883,-1196.71,0.00022465,4]
[346006345,1734621047893,-766.18,0.00022465,4]
[346006346,1734621047902,-500.0,0.00022465,4]
[346006347,1734621047911,-500.0,0.00022465,4]
[346006348,1734621047920,-500.0,0.00022465,4]
[346006349,1734621047929,-500.0,0.00022465,4]
[346006350,1734621047939,-500.0,0.00022465,4]
[346006351,1734621047948,-500.0,0.00022465,4]
[346006352,1734621047957,-500.0,0.00022465,4]
[346006353,1734621047966,-500.0,0.00022465,4]
[346006354,1734621047976,-500.0,0.00022465,4]
[346006355,1734621047986,-638.49,0.00022465,4]
[346006356,1734621047996,-2688.88,0.00022465,4]
[346006357,1734621048011,-500.0,0.00022465,4]
[346006358,1734621048022,-500.0,0.00022465,4]
[346006359,1734621048032,-345.21884813,0.00022465,4]
[346006360,1734621048042,-500.0,0.00022465,4]
[346006361,1734621048053,-572.07,0.00022465,4]
[346006362,1734621048063,-910.33,0.00022465,4]
[346006363,1734621048073,-500.0,0.00022465,4]
[346006364,1734621048083,-1415.94,0.00022465,4]
[346006365,1734621048094,-1781.02,0.00022465,4]
[346006366,1734621048104,-500.0,0.00022465,4]
[346006367,1734621048114,-500.0,0.00022465,4]
[346006368,1734621048124,-500.0,0.00022465,4]
[346006369,1734621048133,-500.0,0.00022465,4]
[346006370,1734621048142,-965.51,0.00022465,4]
[346006371,1734621048151,-603.09,0.00022465,4]
[346006372,1734621048161,-954.06,0.00022465,4]
[346006373,1734621048170,-1066.89,0.00022465,4]
[346006374,1734621048180,-500.0,0.00022465,4]
[346006375,1734621048190,-500.0,0.00022465,4]
[346006376,1734621048199,-685.32,0.00022465,4]
[346006377,1734621048209,-500.0,0.00022465,4]
[346006378,1734621048219,-858.71,0.00022465,4]
[346006379,1734621048229,-500.0,0.00022465,4]
[346006380,1734621048239,-612.03,0.00022465,4]
[346006381,1734621048248,-667.93,0.00022465,4]
[346006382,1734621048257,-500.0,0.00022465,4]
[346006383,1734621048267,-665.58,0.00022465,4]
[346006384,1734621048278,-500.0,0.00022465,4]
[346006385,1734621048287,-926.33,0.00022465,4]
[346006386,1734621048296,-500.0,0.00022465,4]
[346006387,1734621048307,-1857.48,0.00022465,4]
[346006388,1734621048316,-500.0,0.00022465,4]
[346006389,1734621048325,-500.0,0.00022465,4]
[346006390,1734621048336,-500.0,0.00022465,4]
[346006391,1734621048346,-500.0,0.00022465,4]
[346006392,1734621048356,-837.74,0.00022465,4]
[346006393,1734621048367,-500.0,0.00022465,4]
[346006394,1734621048377,-500.0,0.00022465,4]
[346006395,1734621048387,-500.0,0.00022465,4]
[346006396,1734621048396,-500.0,0.00022465,4]
[346006397,1734621048406,-500.0,0.00022465,4]
[346006398,1734621048416,-500.0,0.00022465,4]
[346006399,1734621048427,-500.0,0.00022465,4]
[346006400,1734621048436,-500.0,0.00022465,4]
[346006401,1734621048446,-500.0,0.00022465,4]
[346006402,1734621048455,-257.25,0.00022465,4]
[346006403,1734621048465,-1059.6,0.00022465,4]
[346006404,1734621048474,-744.13,0.00022465,4]
[346006405,1734621048484,-500.0,0.00022465,4]
[346006406,1734621048493,-500.0,0.00022465,4]
[346006407,1734621048503,-566.12377539,0.00022465,2]
[346006408,1734621048512,-580.75,0.00022465,4]
[346006409,1734621048522,-500.0,0.00022465,4]
[346006410,1734621048531,-500.0,0.00022465,4]
[346006411,1734621048541,-500.0,0.00022465,4]
[346006412,1734621048552,-500.0,0.00022465,4]
[346006413,1734621048566,-500.0,0.00022465,4]
[346006414,1734621048576,-500.0,0.00022465,4]
[346006415,1734621048586,-1061.72,0.00022465,4]
[346006416,1734621048597,-695.09,0.00022465,4]
[346006417,1734621048608,-500.0,0.00022465,4]
[346006418,1734621048618,-5035.46570467,0.00022473,2]
[346006419,1734621048627,-104708.0,0.00022533,3]
[346006420,1734621048636,-491.67,0.00022533,2]
[346006421,1734621048645,-501.33,0.00022533,2]
[346006422,1734621048656,-503.32,0.00022533,2]
[346006423,1734621048666,-202.0,0.0002255,2]
[346006424,1734621048676,-204.0,0.0002255,2]
[346006425,1734621048686,-151.4200193,0.00022595,2]
[346006426,1734621048696,-167.25,0.00022634,2]
[346006427,1734621048706,-191.8584508,0.00022639,2]
[346006428,1734621048715,-9416.72350887,0.00022735,2]
[346006429,1734621048725,-7500.0,0.00022738,2]
[346006430,1734621048734,-506.54,0.00022739,4]
[346006431,1734621048744,-500.0,0.00022739,4]
[346006432,1734621048753,-500.0,0.00022739,4]
[346006433,1734621048763,-500.0,0.00022739,4]
[346006434,1734621048775,-500.0,0.00022739,4]
[346006435,1734621048785,-500.0,0.00022739,4]
[346006436,1734621048794,-500.0,0.00022739,4]
[346006437,1734621048805,-500.0,0.00022739,4]
[346006438,1734621048817,-500.0,0.00022739,4]
[346006439,1734621048829,-500.0,0.00022739,4]
[346006440,1734621048839,-500.0,0.00022739,4]
[346006441,1734621048849,-500.0,0.00022739,4]
[346006442,1734621048858,-500.0,0.00022739,4]
[346006443,1734621048868,-500.0,0.00022739,4]
[346006444,1734621048879,-500.0,0.00022739,4]
[346006445,1734621048890,-500.0,0.00022739,4]
[346006446,1734621048901,-500.0,0.00022739,4]
[346006447,1734621048911,-500.0,0.00022739,4]
[346006448,1734621048920,-500.0,0.00022739,4]
[346006449,1734621048930,-206.50089672,0.00022739,4]
[346006450,1734621048941,-500.0,0.00022739,4]
[346006451,1734621048950,-500.0,0.00022739,4]
[346006452,1734621048960,-500.0,0.00022739,4]
[346006453,1734621048970,-222.99893409,0.00022739,4]
[346006454,1734621048980,-500.0,0.00022739,4]
[346006455,1734621048990,-500.0,0.00022739,4]
[346006456,1734621049000,-500.0,0.00022739,4]
[346006457,1734621049010,-500.0,0.00022739,2]
[346006458,1734621049020,-500.0,0.00022739,4]
[346006459,1734621049030,-500.0,0.00022739,4]
[346006460,1734621049039,-500.0,0.00022739,4]
[346006461,1734621049049,-500.0,0.00022739,4]
[346006462,1734621049063,-500.0,0.00022739,4]
[346006463,1734621049073,-500.0,0.00022739,4]
[346006464,1734621049083,-544.4,0.00022739,4]
[346006465,1734621049093,-500.0,0.00022739,4]
[346006466,1734621049103,-500.0,0.00022739,4]
[346006467,1734621049112,-500.0,0.00022739,4]
[346006468,1734621049122,-429.58,0.00022739,4]
[346006469,1734621049131,-500.0,0.00022739,4]
[346006470,1734621049140,-500.0,0.00022739,2]
[346006471,1734621049150,-500.0,0.00022739,4]
[346006472,1734621049159,-500.0,0.00022739,4]
[346006473,1734621049168,-500.0,0.00022739,4]
[346006474,1734621049178,-500.0,0.00022739,4]
[346006475,1734621049187,-500.0,0.00022739,4]
[346006476,1734621049197,-500.0,0.00022739,4]
[346006477,1734621049207,-500.0,0.00022739,4]
[346006478,1734621049216,-500.0,0.00022739,4]
[346006479,1734621049225,-500.0,0.00022739,4]
[346006480,1734621049234,-500.0,0.00022739,4]
[346006481,1734621049244,-500.0,0.00022739,4]
[346006482,1734621049253,-500.0,0.00022739,4]
[346006483,1734621049264,-500.0,0.00022739,4]
[346006484,1734621049273,-500.0,0.00022739,4]
[346006485,1734621049283,-500.0,0.00022739,4]
[346006486,1734621049292,-500.0,0.00022739,4]
[346006487,1734621049305,-862.83,0.00022739,4]
[346006488,1734621049315,-500.0,0.00022739,4]
[346006489,1734621049325,-1796.16,0.00022739,4]
[346006490,1734621049334,-500.0,0.00022739,4]
[346006491,1734621049343,-578.5,0.00022739,4]
[346006492,1734621049353,-628.76,0.00022739,4]
[346006493,1734621049362,-500.0,0.00022739,4]
[346006494,1734621049372,-500.0,0.00022739,4]
[346006495,1734621049381,-294.08812465,0.00022739,4]
[346006496,1734621049390,-500.0,0.00022739,4]
[346006497,1734621049399,-500.0,0.00022739,4]
[346006498,1734621049408,-500.0,0.00022739,4]
[346006499,1734621049418,-500.0,0.00022739,4]
[346006500,1734621049427,-563.56,0.00022739,4]
[346006501,1734621049437,-500.0,0.00022739,4]
[346006502,1734621049446,-500.0,0.00022739,4]
[346006503,1734621049455,-500.0,0.00022739,4]
[346006504,1734621049465,-870.27,0.00022739,4]
[346006505,1734621049474,-258.61470637,0.00022739,4]
[346006506,1734621049484,-500.0,0.00022739,4]
[346006507,1734621049494,-500.0,0.00022739,4]
[346006508,1734621049504,-1132.37,0.00022739,4]
[346006509,1734621049513,-500.0,0.00022739,4]
[346006510,1734621049522,-2724.78,0.00022739,4]
[346006511,1734621049532,-500.0,0.00022739,4]
[346006512,1734621049541,-772.38,0.00022739,4]
[346006513,1734621049551,-500.0,0.00022739,4]
[346006514,1734621049563,-500.0,0.00022739,4]
[346006515,1734621049572,-500.0,0.00022739,4]
[346006516,1734621049583,-1196.71,0.00022739,4]
[346006517,1734621049593,-766.18,0.00022739,4]
[346006518,1734621049603,-500.0,0.00022739,4]
[346006519,1734621049612,-500.0,0.00022739,4]
[346006520,1734621049622,-500.0,0.00022739,4]
[346006521,1734621049631,-500.0,0.00022739,4]
[346006522,1734621049640,-500.0,0.00022739,4]
[346006523,1734621049650,-500.0,0.00022739,4]
[346006524,1734621049659,-500.0,0.00022739,4]
[346006525,1734621049668,-500.0,0.00022739,4]
[346006526,1734621049677,-638.49,0.00022739,4]
[346006527,1734621049687,-500.0,0.00022739,4]
[346006528,1734621049696,-2688.88,0.00022739,4]
[346006529,1734621049705,-500.0,0.00022739,4]
[346006530,1734621049714,-500.0,0.00022739,4]
[346006531,1734621049724,-500.0,0.00022739,4]
[346006532,1734621049734,-572.07,0.00022739,4]
[346006533,1734621049744,-910.33,0.00022739,4]
[346006534,1734621049753,-500.0,0.00022739,4]
[346006535,1734621049763,-1415.94,0.00022739,4]
[346006536,1734621049774,-1781.02,0.00022739,4]
[346006537,1734621049784,-500.0,0.00022739,4]
[346006538,1734621049794,-500.0,0.00022739,4]
[346006539,1734621049805,-500.0,0.00022739,4]
[346006540,1734621049817,-500.0,0.00022739,4]
[346006541,1734621049826,-965.51,0.00022739,4]
[346006542,1734621049836,-603.09,0.00022739,4]
[346006543,1734621049845,-954.06,0.00022739,4]
[346006544,1734621049855,-1066.89,0.00022739,4]
[346006545,1734621049864,-500.0,0.00022739,4]
[346006546,1734621049873,-500.0,0.00022739,4]
[346006547,1734621049884,-685.32,0.00022739,4]
[346006548,1734621049895,-500.0,0.00022739,4]
[346006549,1734621049905,-858.71,0.00022739,4]
[346006550,1734621049915,-500.0,0.00022739,4]
[346006551,1734621049924,-612.03,0.00022739,4]
[346006552,1734621049934,-667.93,0.00022739,4]
[346006553,1734621049943,-500.0,0.00022739,4]
[346006554,1734621049952,-665.58,0.00022739,4]
[346006555,1734621049961,-500.0,0.00022739,4]
[346006556,1734621049970,-926.33,0.00022739,4]
[346006557,1734621049980,-500.0,0.00022739,4]
[346006558,1734621049989,-1857.48,0.00022739,4]
[346006559,1734621049999,-500.0,0.00022739,4]
[346006560,1734621050008,-500.0,0.00022739,4]
[346006561,1734621050017,-309.5015967,0.00022739,4]
[346006562,1734621050026,-500.0,0.00022739,4]
[346006563,1734621050035,-837.74,0.00022739,4]
[346006564,1734621050044,-500.0,0.00022739,4]
[346006565,1734621050055,-500.0,0.00022739,4]
[346006566,1734621050066,-500.0,0.00022739,4]
[346006567,1734621050075,-500.0,0.00022739,4]
[346006568,1734621050086,-500.0,0.00022739,4]
[346006569,1734621050095,-500.0,0.00022739,4]
[346006570,1734621050106,-500.0,0.00022739,4]
[346006571,1734621050116,-500.0,0.00022739,4]
[346006572,1734621050126,-500.0,0.00022739,4]
[346006573,1734621050135,-1059.6,0.00022739,4]
[346006574,1734621050145,-744.13,0.00022739,4]
[346006575,1734621050155,-301.06515749,0.00022739,4]
[346006576,1734621050164,-500.0,0.00022739,4]
[346006577,1734621050173,-580.75,0.00022739,4]
[346006578,1734621050183,-500.0,0.00022739,4]
[346006579,1734621050193,-500.0,0.00022739,4]
[346006580,1734621050202,-500.0,0.00022739,4]
[346006581,1734621050211,-500.0,0.00022739,4]
[346006582,1734621050221,-500.0,0.00022739,4]
[346006583,1734621050230,-504.80150469,0.00022739,4]
[346006584,1734621050240,-1061.72,0.00022739,4]
[346006585,1734621050250,-695.09,0.00022739,4]
[346006586,1734621050260,-500.0,0.00022739,4]
[346006587,1734621050269,-161.76877894,0.00022752,2]
[346006588,1734621050279,-5035.46570467,0.00022801,2]
[346006589,1734621050291,-824.193,0.00022824,2]
[346006590,1734621050300,-1153.38,0.000229,2]
[346006591,1734621050315,-3100.0,0.000229,8]
[346006592,1734621050324,-199.51213238,0.00022913,2]
[346006593,1734621050334,-493.84,0.00022917,2]
[346006594,1734621050344,-202.0,0.0002296,2]
[346006595,1734621050354,-204.0,0.0002296,2]
[346006596,1734621050363,-200.0,0.00022974,2]
[346006597,1734621050373,-200.0,0.00023,2]
[346006598,1734621050383,-506.54,0.00023013,4]
[346006599,1734621050392,-500.0,0.00023013,4]
[346006600,1734621050402,-500.0,0.00023013,4]
[346006601,1734621050411,-207.53102083,0.00023013,4]
[346006602,1734621050421,-500.0,0.00023013,4]
[346006603,1734621050430,-500.0,0.00023013,4]
[346006604,1734621050440,-500.0,0.00023013,4]
[346006605,1734621050449,-500.0,0.00023013,4]
[346006606,1734621050459,-500.0,0.00023013,4]
[346006607,1734621050468,-520.41005065,0.00023013,4]
[346006608,1734621050477,-500.0,0.00023013,4]
[346006609,1734621050487,-500.0,0.00023013,4]
[346006610,1734621050497,-500.0,0.00023013,4]
[346006611,1734621050506,-500.0,0.00023013,4]
[346006612,1734621050515,-500.0,0.00023013,4]
[346006613,1734621050525,-500.0,0.00023013,4]
[346006614,1734621050534,-500.0,0.00023013,4]
[346006615,1734621050543,-500.0,0.00023013,4]
[346006616,1734621050556,-500.0,0.00023013,4]
[346006617,1734621050566,-319.85507831,0.00023013,4]
[346006618,1734621050576,-500.0,0.00023013,4]
[346006619,1734621050586,-547.42492886,0.00023013,4]
[346006620,1734621050596,-500.0,0.00023013,4]
[346006621,1734621050605,-500.0,0.00023013,4]
[346006622,1734621050615,-500.0,0.00023013,4]
[346006623,1734621050624,-500.0,0.00023013,2]
[346006624,1734621050634,-500.0,0.00023013,4]
[346006625,1734621050643,-500.0,0.00023013,4]
[346006626,1734621050652,-500.0,0.00023013,4]
[346006627,1734621050662,-500.0,0.00023013,4]
[346006628,1734621050671,-500.0,0.00023013,4]
[346006629,1734621050681,-500.0,0.00023013,4]
[346006630,1734621050691,-500.0,0.00023013,4]
[346006631,1734621050700,-500.0,0.00023013,4]
[346006632,1734621050710,-500.0,0.00023013,4]
[346006633,1734621050720,-500.0,0.00023013,4]
[346006634,1734621050729,-473.4,0.00023013,2]
[346006635,1734621050738,-500.0,0.00023013,4]
[346006636,1734621050748,-500.0,0.00023013,4]
[346006637,1734621050758,-500.0,0.00023013,4]
[346006638,1734621050768,-500.0,0.00023013,4]
[346006639,1734621050781,-500.0,0.00023013,4]
[346006640,1734621050790,-500.0,0.00023013,4]
[346006641,1734621050800,-500.0,0.00023013,4]
[346006642,1734621050815,-500.0,0.00023013,4]
[346006643,1734621050826,-500.0,0.00023013,4]
[346006644,1734621050835,-500.0,0.00023013,4]
[346006645,1734621050845,-500.0,0.00023013,4]
[346006646,1734621050855,-500.0,0.00023013,4]
[346006647,1734621050865,-500.0,0.00023013,4]
[346006648,1734621050875,-500.0,0.00023013,4]
[346006649,1734621050884,-440.14,0.00023013,4]
[346006650,1734621050894,-500.0,0.00023013,4]
[346006651,1734621050905,-862.83,0.00023013,4]
[346006652,1734621050914,-500.0,0.00023013,4]
[346006653,1734621050923,-1796.16,0.00023013,4]
[346006654,1734621050933,-500.0,0.00023013,4]
[346006655,1734621050943,-578.5,0.00023013,4]
[346006656,1734621050952,-628.76,0.00023013,4]
[346006657,1734621050962,-500.0,0.00023013,4]
[346006658,1734621050972,-500.0,0.00023013,4]
[346006659,1734621050983,-500.0,0.00023013,4]
[346006660,1734621050993,-500.0,0.00023013,4]
[346006661,1734621051002,-500.0,0.00023013,4]
[346006662,1734621051013,-500.0,0.00023013,4]
[346006663,1734621051022,-563.56,0.00023013,4]
[346006664,1734621051032,-500.0,0.00023013,4]
[346006665,1734621051042,-500.0,0.00023013,4]
[346006666,1734621051051,-500.0,0.00023013,4]
[346006667,1734621051064,-870.27,0.00023013,4]
[346006668,1734621051074,-500.0,0.00023013,4]
[346006669,1734621051083,-500.0,0.00023013,4]
[346006670,1734621051094,-1132.37,0.00023013,4]
[346006671,1734621051104,-500.0,0.00023013,4]
[346006672,1734621051114,-2724.78,0.00023013,4]
[346006673,1734621051124,-500.0,0.00023013,4]
[346006674,1734621051134,-772.38,0.00023013,4]
[346006675,1734621051144,-500.0,0.00023013,4]
[346006676,1734621051153,-500.0,0.00023013,4]
[346006677,1734621051163,-500.0,0.00023013,4]
[346006678,1734621051174,-1196.71,0.00023013,4]
[346006679,1734621051184,-766.18,0.00023013,4]
[346006680,1734621051194,-500.0,0.00023013,4]
[346006681,1734621051205,-500.0,0.00023013,4]
[346006682,1734621051214,-500.0,0.00023013,4]
[346006683,1734621051224,-500.0,0.00023013,4]
[346006684,1734621051233,-500.0,0.00023013,4]
[346006685,1734621051243,-500.0,0.00023013,4]
[346006686,1734621051252,-500.0,0.00023013,4]
[346006687,1734621051262,-500.0,0.00023013,4]
[346006688,1734621051272,-638.49,0.00023013,4]
[346006689,1734621051282,-500.0,0.00023013,4]
[346006690,1734621051291,-2688.88,0.00023013,4]
[346006691,1734621051300,-500.0,0.00023013,4]
[346006692,1734621051313,-500.0,0.00023013,4]
[346006693,1734621051323,-500.0,0.00023013,4]
[346006694,1734621051332,-572.07,0.00023013,4]
[346006695,1734621051342,-910.33,0.00023013,4]
[346006696,1734621051352,-500.0,0.00023013,4]
[346006697,1734621051361,-1415.94,0.00023013,4]
[346006698,1734621051370,-1781.02,0.00023013,4]
[346006699,1734621051380,-500.0,0.00023013,4]
[346006700,1734621051390,-500.0,0.00023013,4]
[346006701,1734621051400,-500.0,0.00023013,4]
[346006702,1734621051410,-965.51,0.00023013,4]
[346006703,1734621051420,-500.0,0.00023013,4]
[346006704,1734621051430,-603.09,0.00023013,4]
[346006705,1734621051440,-954.06,0.00023013,4]
[346006706,1734621051450,-1066.89,0.00023013,4]
[346006707,1734621051460,-500.0,0.00023013,4]
[346006708,1734621051471,-500.0,0.00023013,4]
[346006709,1734621051481,-685.32,0.00023013,4]
[346006710,1734621051491,-500.0,0.00023013,4]
[346006711,1734621051500,-858.71,0.00023013,4]
[346006712,1734621051511,-469.16796366,0.00023013,4]
[346006713,1734621051521,-612.03,0.00023013,4]
[346006714,1734621051532,-667.93,0.00023013,4]
[346006715,1734621051543,-500.0,0.00023013,4]
[346006716,1734621051555,-665.58,0.00023013,4]
[346006717,1734621051566,-500.0,0.00023013,4]
[346006718,1734621051576,-926.33,0.00023013,4]
[346006719,1734621051586,-500.0,0.00023013,4]
[346006720,1734621051596,-1857.48,0.00023013,4]
[346006721,1734621051606,-500.0,0.00023013,4]
[346006722,1734621051616,-500.0,0.00023013,4]
[346006723,1734621051626,-500.0,0.00023013,4]
[346006724,1734621051636,-837.74,0.00023013,4]
[346006725,1734621051646,-500.0,0.00023013,4]
[346006726,1734621051656,-500.0,0.00023013,4]
[346006727,1734621051666,-500.0,0.00023013,4]
[346006728,1734621051676,-500.0,0.00023013,4]
[346006729,1734621051686,-500.0,0.00023013,4]
[346006730,1734621051696,-500.0,0.00023013,4]
[346006731,1734621051706,-500.0,0.00023013,4]
[346006732,1734621051716,-500.0,0.00023013,4]
[346006733,1734621051727,-1059.6,0.00023013,4]
[346006734,1734621051737,-744.13,0.00023013,4]
[346006735,1734621051747,-362.30844878,0.00023013,4]
[346006736,1734621051757,-580.75,0.00023013,4]
[346006737,1734621051768,-500.0,0.00023013,4]
[346006738,1734621051781,-500.0,0.00023013,4]
[346006739,1734621051792,-500.0,0.00023013,4]
[346006740,1734621051802,-500.0,0.00023013,4]
[346006741,1734621051819,-500.0,0.00023013,4]
[346006742,1734621051829,-1061.72,0.00023013,4]
[346006743,1734621051838,-695.09,0.00023013,4]
[346006744,1734621051848,-500.0,0.00023013,4]
[346006745,1734621051858,-9416.72350887,0.00023074,2]
[346006746,1734621051868,-293.04207,0.00023088,7]
[346006747,1734621051878,-5035.46570467,0.00023129,2]
[346006748,1734621051888,-500.0,0.00023274,2]
[346006749,1734621051899,-479.717,0.0002328,2]
[346006750,1734621051910,-7500.0,0.00023286,2]
[346006751,1734621051920,-506.54,0.00023287,4]
[346006752,1734621051930,-500.0,0.00023287,4]
[346006753,1734621051940,-500.0,0.00023287,4]
[346006754,1734621051950,-500.0,0.00023287,4]
[346006755,1734621051959,-500.0,0.00023287,4]
[346006756,1734621051968,-500.0,0.00023287,4]
[346006757,1734621051979,-500.0,0.00023287,4]
[346006758,1734621051989,-500.0,0.00023287,4]
[346006759,1734621052000,-500.0,0.00023287,4]
[346006760,1734621052010,-500.0,0.00023287,4]
[346006761,1734621052020,-500.0,0.00023287,4]
[346006762,1734621052031,-500.0,0.00023287,4]
[346006763,1734621052041,-500.0,0.00023287,4]
[346006764,1734621052051,-500.0,0.00023287,4]
[346006765,1734621052064,-482.5,0.00023287,4]
[346006766,1734621052074,-500.0,0.00023287,4]
[346006767,1734621052085,-500.0,0.00023287,4]
[346006768,1734621052095,-500.0,0.00023287,4]
[346006769,1734621052105,-523.01642852,0.00023287,4]
[346006770,1734621052115,-500.0,0.00023287,4]
[346006771,1734621052125,-500.0,0.00023287,4]
[346006772,1734621052135,-500.0,0.00023287,4]
[346006773,1734621052144,-500.0,0.00023287,4]
[346006774,1734621052154,-500.0,0.00023287,4]
[346006775,1734621052164,-500.0,0.00023287,4]
[346006776,1734621052174,-500.0,0.00023287,4]
[346006777,1734621052184,-500.0,0.00023287,4]
[346006778,1734621052195,-1000.0,0.00023287,5]
[346006779,1734621052205,-500.0,0.00023287,4]
[346006780,1734621052214,-500.0,0.00023287,4]
[346006781,1734621052224,-500.0,0.00023287,4]
[346006782,1734621052234,-500.0,0.00023287,4]
[346006783,1734621052244,-500.0,0.00023287,4]
[346006784,1734621052254,-422.55522604,0.00023287,4]
[346006785,1734621052264,-401.36,0.00023287,4]
[346006786,1734621052274,-500.0,0.00023287,4]
[346006787,1734621052284,-500.0,0.00023287,4]
[346006788,1734621052295,-500.0,0.00023287,4]
[346006789,1734621052308,-500.0,0.00023287,4]
[346006790,1734621052319,-500.0,0.00023287,4]
[346006791,1734621052329,-500.0,0.00023287,4]
[346006792,1734621052339,-500.0,0.00023287,4]
[346006793,1734621052350,-500.0,0.00023287,4]
[346006794,1734621052360,-500.0,0.00023287,4]
[346006795,1734621052370,-500.0,0.00023287,4]
[346006796,1734621052380,-500.0,0.00023287,4]
[346006797,1734621052390,-500.0,0.00023287,4]
[346006798,1734621052400,-862.83,0.00023287,4]
[346006799,1734621052410,-500.0,0.00023287,4]
[346006800,1734621052420,-1796.16,0.00023287,4]
[346006801,1734621052430,-500.0,0.00023287,4]
[346006802,1734621052440,-578.5,0.00023287,4]
[346006803,1734621052450,-628.76,0.00023287,4]
[346006804,1734621052460,-500.0,0.00023287,4]
[346006805,1734621052471,-500.0,0.00023287,4]
[346006806,1734621052659,-500.0,0.00023287,4]